[Event "Late-Titled-Tuesday-Blitz-April-30-2024"]
[Site "Chess.com"]
[Date "2024.04.30"]
[Round "9"]
[White "Carlitus2004"]
[Black "egnfanclub"]
[Result "1-0"]
[WhiteElo "2481"]
[BlackElo "2357"]
[TimeControl "180+1"]
[EndTime "15:45:02 PDT"]
[Termination "Carlitus2004 won on time"]

1. e4 {[%clk 0:03:00.9]} 1... e5 {[%clk 0:02:59.1]} 2. Nc3 {[%clk 0:02:58.6]}
2... Nf6 {[%clk 0:02:58.8]} 3. g3 {[%clk 0:02:58.8]} 3... Nc6 {[%clk 0:02:55.9]}
4. Bg2 {[%clk 0:02:59.1]} 4... Bc5 {[%clk 0:02:55.9]} 5. Nf3 {[%clk 0:02:58.8]}
5... d6 {[%clk 0:02:55.2]} 6. O-O {[%clk 0:02:59.4]} 6... O-O {[%clk 0:02:55.2]}
7. d3 {[%clk 0:02:58.7]} 7... h6 {[%clk 0:02:52.2]} 8. h3 {[%clk 0:02:59]} 8...
a6 {[%clk 0:02:50.5]} 9. Kh2 {[%clk 0:02:59.4]} 9... Nd4 {[%clk 0:02:47.4]} 10.
Nxd4 {[%clk 0:02:55.8]} 10... Bxd4 {[%clk 0:02:48.3]} 11. f4 {[%clk 0:02:53.4]}
11... c6 {[%clk 0:02:37.1]} 12. Ne2 {[%clk 0:02:52.9]} 12... Bb6 {[%clk
0:02:32.3]} 13. d4 {[%clk 0:02:52.9]} 13... exd4 {[%clk 0:02:26.3]} 14. Nxd4
{[%clk 0:02:53.8]} 14... d5 {[%clk 0:02:26.8]} 15. e5 {[%clk 0:02:50.1]} 15...
Ne4 {[%clk 0:02:26.5]} 16. Be3 {[%clk 0:02:49.9]} 16... f5 {[%clk 0:02:13.1]}
17. c3 {[%clk 0:02:37.7]} 17... Bxd4 {[%clk 0:01:46]} 18. Bxd4 {[%clk
0:02:28.1]} 18... c5 {[%clk 0:01:41]} 19. Bxe4 {[%clk 0:02:23.3]} 19... cxd4
{[%clk 0:01:36.8]} 20. Bg2 {[%clk 0:02:14.1]} 20... Be6 {[%clk 0:01:28.3]} 21.
Qxd4 {[%clk 0:02:09.9]} 21... Rc8 {[%clk 0:01:27.1]} 22. Rad1 {[%clk 0:02:06.1]}
22... Rc4 {[%clk 0:01:19.6]} 23. Qd3 {[%clk 0:01:51.6]} 23... Ra4 {[%clk
0:00:43.3]} 24. a3 {[%clk 0:01:41.4]} 24... d4 {[%clk 0:00:41.7]} 25. cxd4
{[%clk 0:01:29.5]} 25... Bc4 {[%clk 0:00:41.2]} 26. Qc2 {[%clk 0:01:27.5]} 26...
Bxf1 {[%clk 0:00:32.7]} 27. Qxa4 {[%clk 0:00:58.1]} 27... Bxg2 {[%clk
0:00:31.9]} 28. Kxg2 {[%clk 0:00:59]} 28... Qd5+ {[%clk 0:00:32]} 29. Kf2 {[%clk
0:00:56.5]} 29... Rc8 {[%clk 0:00:28.3]} 30. Qb4 {[%clk 0:00:23.8]} 30... a5
{[%clk 0:00:22.1]} 31. Qe1 {[%clk 0:00:17.1]} 31... Rc2+ {[%clk 0:00:20.1]} 32.
Rd2 {[%clk 0:00:16.9]} 32... Qb3 {[%clk 0:00:20.4]} 33. Rxc2 {[%clk 0:00:15.9]}
33... Qxc2+ {[%clk 0:00:20.7]} 34. Qe2 {[%clk 0:00:16.8]} 34... Qc1 {[%clk
0:00:18.2]} 35. Kg2 {[%clk 0:00:12]} 35... Qc6+ {[%clk 0:00:16.7]} 36. Kf2
{[%clk 0:00:12.5]} 36... Qc1 {[%clk 0:00:16.5]} 37. h4 {[%clk 0:00:12.7]} 37...
Qh1 {[%clk 0:00:14.9]} 38. Ke3 {[%clk 0:00:11.7]} 38... Qe4+ {[%clk 0:00:14]}
39. Kf2 {[%clk 0:00:10.7]} 39... Qh1 {[%clk 0:00:13.9]} 40. Qd2 {[%clk 0:00:10]}
40... Qh2+ {[%clk 0:00:10.7]} 41. Ke1 {[%clk 0:00:10.7]} 41... Qxg3+ {[%clk
0:00:10.7]} 42. Kd1 {[%clk 0:00:11.5]} 42... Qf3+ {[%clk 0:00:09.6]} 43. Kc2
{[%clk 0:00:09.6]} 43... Qd5 {[%clk 0:00:10.5]} 44. Qc3 {[%clk 0:00:08]} 44...
Kh7 {[%clk 0:00:09.7]} 45. Kb1 {[%clk 0:00:07.4]} 45... Qe4+ {[%clk 0:00:09.7]}
46. Ka2 {[%clk 0:00:07.5]} 46... Qxf4 {[%clk 0:00:09.6]} 47. d5 {[%clk
0:00:07.1]} 47... Qe4 {[%clk 0:00:07.5]} 48. d6 {[%clk 0:00:05.5]} 48... Qd5+
{[%clk 0:00:07.7]} 49. Kb1 {[%clk 0:00:05.8]} 49... a4 {[%clk 0:00:07.8]} 50.
Kc2 {[%clk 0:00:05.7]} 50... b5 {[%clk 0:00:07.4]} 51. Kc1 {[%clk 0:00:02.7]}
51... g6 {[%clk 0:00:07.4]} 52. h5 {[%clk 0:00:03.1]} 52... gxh5 {[%clk
0:00:07.6]} 53. Kc2 {[%clk 0:00:02.8]} 53... Qe4+ {[%clk 0:00:07.8]} 54. Kd2
{[%clk 0:00:02.8]} 54... Qd5+ {[%clk 0:00:07.9]} 55. Ke3 {[%clk 0:00:03.5]}
55... Qe4+ {[%clk 0:00:08.3]} 56. Kd2 {[%clk 0:00:04.2]} 56... Qd5+ {[%clk
0:00:08.6]} 57. Qd3 {[%clk 0:00:03.7]} 57... Qg2+ {[%clk 0:00:07.7]} 58. Kc3
{[%clk 0:00:04.1]} 58... Qc6+ {[%clk 0:00:07.1]} 59. Kb4 {[%clk 0:00:04.8]}
59... Kg6 {[%clk 0:00:07.4]} 60. d7 {[%clk 0:00:04.8]} 1-0

[Event "Late-Titled-Tuesday-Blitz-April-30-2024"]
[Site "Chess.com"]
[Date "2024.04.30"]
[Round "9"]
[White "ChessSwole"]
[Black "mightysmasher"]
[Result "0-1"]
[WhiteElo "2659"]
[BlackElo "2549"]
[TimeControl "180+1"]
[EndTime "15:45:15 PDT"]
[Termination "mightysmasher won by resignation"]

1. Nf3 {[%clk 0:03:00.9]} 1... d5 {[%clk 0:02:59.7]} 2. e3 {[%clk 0:03:00.4]}
2... Nf6 {[%clk 0:02:58.2]} 3. c4 {[%clk 0:03:00.6]} 3... e6 {[%clk 0:02:58.1]}
4. Nc3 {[%clk 0:03:00.3]} 4... Bd6 {[%clk 0:02:58.3]} 5. b3 {[%clk 0:02:58.2]}
5... O-O {[%clk 0:02:58.3]} 6. Bb2 {[%clk 0:02:58.6]} 6... b6 {[%clk 0:02:58]}
7. cxd5 {[%clk 0:02:58.7]} 7... exd5 {[%clk 0:02:58]} 8. g3 {[%clk 0:02:58.7]}
8... Bb7 {[%clk 0:02:58.2]} 9. Bg2 {[%clk 0:02:59]} 9... c5 {[%clk 0:02:58.5]}
10. d4 {[%clk 0:02:57.3]} 10... Nc6 {[%clk 0:02:58.3]} 11. O-O {[%clk
0:02:56.9]} 11... Rc8 {[%clk 0:02:57.3]} 12. Rc1 {[%clk 0:02:56.3]} 12... Re8
{[%clk 0:02:57]} 13. dxc5 {[%clk 0:02:44.2]} 13... Bxc5 {[%clk 0:02:54.5]} 14.
Ne2 {[%clk 0:02:40.6]} 14... Ne4 {[%clk 0:02:50.4]} 15. Ned4 {[%clk 0:02:37.3]}
15... Nxd4 {[%clk 0:02:49.6]} 16. Nxd4 {[%clk 0:02:35.9]} 16... Ba6 {[%clk
0:02:49.1]} 17. Re1 {[%clk 0:02:33.5]} 17... Bb4 {[%clk 0:02:01.8]} 18. Nc6
{[%clk 0:02:26.6]} 18... Rxc6 {[%clk 0:02:00]} 19. Rxc6 {[%clk 0:02:27.5]} 19...
Bxe1 {[%clk 0:01:58.8]} 20. Qxe1 {[%clk 0:02:28.3]} 20... Nc5 {[%clk 0:01:57.6]}
21. Qc3 {[%clk 0:02:21]} 21... f6 {[%clk 0:01:55.3]} 22. Qd4 {[%clk 0:02:19.5]}
22... Ne4 {[%clk 0:01:33.5]} 23. h4 {[%clk 0:01:52.8]} 23... Bb7 {[%clk
0:01:23.2]} 24. Rc2 {[%clk 0:01:52.7]} 24... Qe7 {[%clk 0:01:16.5]} 25. Qa4
{[%clk 0:01:42.8]} 25... Nc5 {[%clk 0:00:47.2]} 26. Qxa7 {[%clk 0:01:33.9]}
26... d4 {[%clk 0:00:15.7]} 27. Bxb7 {[%clk 0:01:17.6]} 27... Nxb7 {[%clk
0:00:15.1]} 28. Bxd4 {[%clk 0:01:15.3]} 28... Qe4 {[%clk 0:00:15]} 29. Rc7
{[%clk 0:01:10.9]} 29... Qb1+ {[%clk 0:00:11.3]} 30. Kh2 {[%clk 0:01:10.8]}
30... Qf5 {[%clk 0:00:05.8]} 31. Rxg7+ {[%clk 0:01:10.5]} 31... Kxg7 {[%clk
0:00:04.5]} 32. Qxb7+ {[%clk 0:01:10.2]} 32... Kg8 {[%clk 0:00:04.6]} 33. e4
{[%clk 0:00:44.8]} 33... Qxe4 {[%clk 0:00:04.6]} 34. Qxb6 {[%clk 0:00:43.5]}
34... Qf3 {[%clk 0:00:03.8]} 35. Bxf6 {[%clk 0:00:33.4]} 35... Re1 {[%clk
0:00:02]} 36. Qd8+ {[%clk 0:00:33.6]} 36... Kf7 {[%clk 0:00:01.7]} 37. Qd7+
{[%clk 0:00:22]} 37... Kxf6 {[%clk 0:00:01.9]} 38. Qd4+ {[%clk 0:00:21.3]} 38...
Kf7 {[%clk 0:00:01.9]} 39. Qd7+ {[%clk 0:00:20.5]} 39... Re7 {[%clk 0:00:01.7]}
40. Qd4 {[%clk 0:00:20.2]} 40... Qe2 {[%clk 0:00:01.6]} 41. Qf4+ {[%clk
0:00:19.7]} 41... Kg8 {[%clk 0:00:01.6]} 42. Qg5+ {[%clk 0:00:18.9]} 42... Rg7
{[%clk 0:00:01.8]} 43. Qd8+ {[%clk 0:00:19.6]} 43... Kf7 {[%clk 0:00:02.2]} 44.
Qd5+ {[%clk 0:00:20.2]} 44... Qe6 {[%clk 0:00:01.8]} 45. Qh5+ {[%clk 0:00:20.9]}
45... Qg6 {[%clk 0:00:01.9]} 46. Qd5+ {[%clk 0:00:20.9]} 46... Qe6 {[%clk
0:00:02.8]} 47. Qb7+ {[%clk 0:00:20]} 47... Kf6 {[%clk 0:00:02.8]} 48. Qf3+
{[%clk 0:00:20.3]} 48... Kg6 {[%clk 0:00:02.1]} 49. a4 {[%clk 0:00:17.5]} 49...
Rf7 {[%clk 0:00:02.2]} 50. Qd3+ {[%clk 0:00:17.1]} 50... Kg7 {[%clk 0:00:02.6]}
51. f4 {[%clk 0:00:16.3]} 51... Rd7 {[%clk 0:00:01.6]} 52. Qc3+ {[%clk
0:00:16.5]} 52... Kf7 {[%clk 0:00:01.8]} 53. Qa5 {[%clk 0:00:11.9]} 53... Qe2+
{[%clk 0:00:01.8]} 54. Kh3 {[%clk 0:00:12.5]} 54... Rd1 {[%clk 0:00:02.2]} 55.
Qf5+ {[%clk 0:00:11]} 55... Ke8 {[%clk 0:00:02.3]} 56. Qc8+ {[%clk 0:00:09.6]}
56... Ke7 {[%clk 0:00:02.4]} 57. Qc7+ {[%clk 0:00:10.2]} 57... Kf8 {[%clk
0:00:02]} 58. Qc8+ {[%clk 0:00:10.2]} 58... Kf7 {[%clk 0:00:02.3]} 59. Qc7+
{[%clk 0:00:10.6]} 59... Qe7 {[%clk 0:00:02.6]} 60. Qc4+ {[%clk 0:00:10.6]}
60... Qe6+ {[%clk 0:00:03]} 61. Qxe6+ {[%clk 0:00:10.5]} 61... Kxe6 {[%clk
0:00:03.9]} 62. Kg4 {[%clk 0:00:10.9]} 62... Rb1 {[%clk 0:00:04.4]} 63. Kh5
{[%clk 0:00:11.2]} 63... Rxb3 {[%clk 0:00:04.7]} 64. g4 {[%clk 0:00:11.7]} 64...
Rb4 {[%clk 0:00:04.9]} 65. f5+ {[%clk 0:00:12.3]} 65... Kf7 {[%clk 0:00:05.1]}
66. g5 {[%clk 0:00:11]} 66... Rxa4 {[%clk 0:00:05.3]} 67. f6 {[%clk 0:00:11.2]}
67... Rb4 {[%clk 0:00:04.6]} 68. g6+ {[%clk 0:00:09.8]} 68... hxg6+ {[%clk
0:00:04.9]} 69. Kg5 {[%clk 0:00:10.7]} 69... Rb5+ {[%clk 0:00:05.2]} 70. Kg4
{[%clk 0:00:11.1]} 70... Kxf6 {[%clk 0:00:06.1]} 0-1

[Event "Late-Titled-Tuesday-Blitz-April-30-2024"]
[Site "Chess.com"]
[Date "2024.04.30"]
[Round "9"]
[White "jefferyx"]
[Black "mishanick"]
[Result "1/2-1/2"]
[WhiteElo "3115"]
[BlackElo "3125"]
[TimeControl "180+1"]
[EndTime "15:45:17 PDT"]
[Termination "Game drawn by repetition"]

1. d4 {[%clk 0:03:00.9]} 1... Nf6 {[%clk 0:02:59.9]} 2. c4 {[%clk 0:03:01.5]}
2... e6 {[%clk 0:03:00.4]} 3. Nc3 {[%clk 0:03:02.1]} 3... d5 {[%clk 0:03:00.9]}
4. Bg5 {[%clk 0:03:01.1]} 4... Bb4 {[%clk 0:02:49.8]} 5. e3 {[%clk 0:02:54.7]}
5... h6 {[%clk 0:02:49.7]} 6. Bh4 {[%clk 0:02:54]} 6... g5 {[%clk 0:02:49.9]} 7.
Bg3 {[%clk 0:02:54.1]} 7... Ne4 {[%clk 0:02:50.6]} 8. Rc1 {[%clk 0:02:39.2]}
8... Nxg3 {[%clk 0:02:47.4]} 9. hxg3 {[%clk 0:02:39]} 9... c6 {[%clk 0:02:47.5]}
10. a3 {[%clk 0:02:36.8]} 10... Bf8 {[%clk 0:02:46.7]} 11. Nf3 {[%clk 0:02:30]}
11... Bg7 {[%clk 0:02:46.7]} 12. Be2 {[%clk 0:02:26.1]} 12... Nd7 {[%clk
0:02:45.1]} 13. b4 {[%clk 0:02:25]} 13... Qe7 {[%clk 0:02:36.5]} 14. cxd5 {[%clk
0:02:23.8]} 14... exd5 {[%clk 0:02:36.3]} 15. Qb3 {[%clk 0:02:23.8]} 15... a6
{[%clk 0:02:34.7]} 16. a4 {[%clk 0:02:23.6]} 16... O-O {[%clk 0:02:20.7]} 17.
O-O {[%clk 0:02:17.2]} 17... Nf6 {[%clk 0:01:55.2]} 18. b5 {[%clk 0:02:15]}
18... axb5 {[%clk 0:01:54.6]} 19. axb5 {[%clk 0:02:15.9]} 19... Qa3 {[%clk
0:01:29.3]} 20. Qxa3 {[%clk 0:02:06]} 20... Rxa3 {[%clk 0:01:30.2]} 21. Ne5
{[%clk 0:02:06.1]} 21... Nd7 {[%clk 0:01:15.2]} 22. Nd3 {[%clk 0:01:39.2]} 22...
Nb6 {[%clk 0:01:13]} 23. bxc6 {[%clk 0:01:17.8]} 23... bxc6 {[%clk 0:01:13.1]}
24. Nb4 {[%clk 0:01:18.5]} 24... Bd7 {[%clk 0:00:42.4]} 25. Nb1 {[%clk
0:01:18.1]} 25... Rb3 {[%clk 0:00:25.7]} 26. Nxc6 {[%clk 0:01:17.8]} 26... Re8
{[%clk 0:00:26.2]} 27. Nd2 {[%clk 0:01:07.6]} 27... Rb2 {[%clk 0:00:26.1]} 28.
Rfd1 {[%clk 0:01:08]} 28... Na4 {[%clk 0:00:17.3]} 29. Kf1 {[%clk 0:00:50.5]}
29... Bf8 {[%clk 0:00:10.6]} 30. Ne5 {[%clk 0:00:46.9]} 30... Be6 {[%clk
0:00:11]} 31. Nd3 {[%clk 0:00:35.8]} 31... Ra2 {[%clk 0:00:10.5]} 32. Nb3 {[%clk
0:00:28.3]} 32... Rb8 {[%clk 0:00:09.4]} 33. Nbc5 {[%clk 0:00:27.6]} 33... Nxc5
{[%clk 0:00:08.8]} 34. dxc5 {[%clk 0:00:28.5]} 34... Rc8 {[%clk 0:00:08.1]} 35.
c6 {[%clk 0:00:16.8]} 35... Ra6 {[%clk 0:00:08.2]} 36. Nb4 {[%clk 0:00:13.2]}
36... Rb6 {[%clk 0:00:06.9]} 37. Nxd5 {[%clk 0:00:12.9]} 37... Bxd5 {[%clk
0:00:05.5]} 38. Rxd5 {[%clk 0:00:13.8]} 38... Rbxc6 {[%clk 0:00:06.2]} 39. Rxc6
{[%clk 0:00:14.2]} 39... Rxc6 {[%clk 0:00:07]} 40. Bh5 {[%clk 0:00:11.9]} 40...
Re6 {[%clk 0:00:06.5]} 41. Rf5 {[%clk 0:00:11.3]} 41... Re7 {[%clk 0:00:06.3]}
42. Ke2 {[%clk 0:00:11.7]} 42... Kg7 {[%clk 0:00:06.9]} 43. f4 {[%clk
0:00:11.9]} 43... f6 {[%clk 0:00:04.2]} 44. Rb5 {[%clk 0:00:11.1]} 44... Rc7
{[%clk 0:00:04.6]} 45. Kf3 {[%clk 0:00:11.5]} 45... Be7 {[%clk 0:00:04.8]} 46.
e4 {[%clk 0:00:09.3]} 46... Bd6 {[%clk 0:00:04.6]} 47. Kg4 {[%clk 0:00:09.4]}
47... Re7 {[%clk 0:00:04.2]} 48. Kf5 {[%clk 0:00:09.2]} 48... Bc7 {[%clk
0:00:04.3]} 49. Rd5 {[%clk 0:00:06.9]} 49... Bb8 {[%clk 0:00:04.4]} 50. e5
{[%clk 0:00:07]} 50... fxe5 {[%clk 0:00:03.9]} 51. fxe5 {[%clk 0:00:07.9]} 51...
Bc7 {[%clk 0:00:04.5]} 52. e6 {[%clk 0:00:08.5]} 52... Bxg3 {[%clk 0:00:04.1]}
53. Rd7 {[%clk 0:00:02.4]} 53... Rxd7 {[%clk 0:00:04.2]} 54. exd7 {[%clk
0:00:03.3]} 54... Bc7 {[%clk 0:00:04.7]} 55. Ke6 {[%clk 0:00:04.1]} 55... Bd8
{[%clk 0:00:05.3]} 56. g4 {[%clk 0:00:04.5]} 56... Kf8 {[%clk 0:00:06]} 57. Bg6
{[%clk 0:00:04.8]} 57... Be7 {[%clk 0:00:06.4]} 58. Be4 {[%clk 0:00:03.1]} 58...
Bd8 {[%clk 0:00:06.9]} 59. Bd5 {[%clk 0:00:04]} 59... Be7 {[%clk 0:00:06]} 60.
Bc4 {[%clk 0:00:04.4]} 60... Bd8 {[%clk 0:00:06.6]} 61. Kd6 {[%clk 0:00:05.3]}
61... Ba5 {[%clk 0:00:05.8]} 62. Ke6 {[%clk 0:00:04.2]} 62... Bd8 {[%clk
0:00:06.3]} 63. Kf5 {[%clk 0:00:04.6]} 63... Ke7 {[%clk 0:00:06.4]} 64. Bb5
{[%clk 0:00:04.8]} 64... Kd6 {[%clk 0:00:06.3]} 65. Kg6 {[%clk 0:00:05.4]} 65...
Ke6 {[%clk 0:00:05.8]} 66. Kxh6 {[%clk 0:00:05.2]} 66... Kf7 {[%clk 0:00:06.5]}
67. Kh7 {[%clk 0:00:05.1]} 67... Be7 {[%clk 0:00:06.1]} 68. Bd3 {[%clk
0:00:04.1]} 68... Bd8 {[%clk 0:00:06.1]} 69. Bf5 {[%clk 0:00:05]} 69... Be7
{[%clk 0:00:05.7]} 70. Kh6 {[%clk 0:00:04.1]} 70... Bd8 {[%clk 0:00:05.8]} 71.
Kh7 {[%clk 0:00:04.8]} 71... Be7 {[%clk 0:00:06.1]} 72. Kh6 {[%clk 0:00:05.5]}
72... Bd8 {[%clk 0:00:06.7]} 73. Kh7 {[%clk 0:00:06.1]} 1/2-1/2

[Event "Late-Titled-Tuesday-Blitz-April-30-2024"]
[Site "Chess.com"]
[Date "2024.04.30"]
[Round "9"]
[White "Rytenko_V"]
[Black "Rodalquilar"]
[Result "1/2-1/2"]
[WhiteElo "2494"]
[BlackElo "2671"]
[TimeControl "180+1"]
[EndTime "15:45:21 PDT"]
[Termination "Game drawn by repetition"]

1. e4 {[%clk 0:03:00.9]} 1... d5 {[%clk 0:03:00.3]} 2. exd5 {[%clk 0:02:59.9]}
2... Qxd5 {[%clk 0:03:01.2]} 3. Nc3 {[%clk 0:02:59.7]} 3... Qa5 {[%clk
0:03:01.5]} 4. d4 {[%clk 0:02:58.8]} 4... Nf6 {[%clk 0:03:02]} 5. Nf3 {[%clk
0:02:58.7]} 5... Bf5 {[%clk 0:03:02.1]} 6. Ne5 {[%clk 0:02:58.5]} 6... c6 {[%clk
0:03:02.2]} 7. g4 {[%clk 0:02:58]} 7... Be6 {[%clk 0:03:02.5]} 8. Nc4 {[%clk
0:02:49.5]} 8... Qc7 {[%clk 0:03:00.6]} 9. g5 {[%clk 0:02:42.6]} 9... Nd5 {[%clk
0:03:00.7]} 10. Qf3 {[%clk 0:02:37.7]} 10... Nd7 {[%clk 0:02:52.3]} 11. Bd2
{[%clk 0:02:36]} 11... g6 {[%clk 0:02:51.8]} 12. O-O-O {[%clk 0:02:28.5]} 12...
Bg7 {[%clk 0:02:52]} 13. Be1 {[%clk 0:02:08.1]} 13... Nxc3 {[%clk 0:02:51.3]}
14. Qxc3 {[%clk 0:02:07]} 14... Nb6 {[%clk 0:02:46.6]} 15. Bd2 {[%clk
0:01:46.9]} 15... O-O-O {[%clk 0:02:44.3]} 16. Nxb6+ {[%clk 0:01:43.6]} 16...
axb6 {[%clk 0:02:32.6]} 17. Be3 {[%clk 0:01:42.1]} 17... Bd5 {[%clk 0:02:26.4]}
18. Bh3+ {[%clk 0:01:38.7]} 18... Kb8 {[%clk 0:02:26.4]} 19. Rhg1 {[%clk
0:01:28]} 19... e5 {[%clk 0:02:23]} 20. Rg3 {[%clk 0:01:15]} 20... Rhe8 {[%clk
0:02:00.9]} 21. Bg2 {[%clk 0:01:08.5]} 21... Bxg2 {[%clk 0:01:26.7]} 22. Rxg2
{[%clk 0:01:08.4]} 22... exd4 {[%clk 0:01:27.2]} 23. Bxd4 {[%clk 0:01:08.8]}
23... Qd7 {[%clk 0:01:27.6]} 24. Be5+ {[%clk 0:01:01.3]} 24... Bxe5 {[%clk
0:01:27.6]} 25. Rxd7 {[%clk 0:01:01.3]} 25... Bxc3 {[%clk 0:01:04.8]} 26. Rxd8+
{[%clk 0:01:00]} 26... Rxd8 {[%clk 0:01:05]} 27. bxc3 {[%clk 0:01:00.3]} 27...
Rd5 {[%clk 0:01:00.6]} 28. Rg4 {[%clk 0:00:59.9]} 28... Kc7 {[%clk 0:00:50.2]}
29. Rf4 {[%clk 0:00:54.6]} 29... Rd7 {[%clk 0:00:43.1]} 30. a4 {[%clk
0:00:52.7]} 30... Kd6 {[%clk 0:00:42.2]} 31. Kd2 {[%clk 0:00:42.7]} 31... Ke6+
{[%clk 0:00:37.7]} 32. Ke3 {[%clk 0:00:32.4]} 32... Rd5 {[%clk 0:00:37.9]} 33.
h4 {[%clk 0:00:31.4]} 33... Re5+ {[%clk 0:00:34.7]} 34. Kd3 {[%clk 0:00:29.8]}
34... Rf5 {[%clk 0:00:18.2]} 35. Rb4 {[%clk 0:00:26.8]} 35... Kd6 {[%clk
0:00:10.7]} 36. f4 {[%clk 0:00:25.5]} 36... Kc7 {[%clk 0:00:11.3]} 37. Rd4
{[%clk 0:00:19.1]} 37... b5 {[%clk 0:00:08.3]} 38. axb5 {[%clk 0:00:17.6]} 38...
Rxb5 {[%clk 0:00:09.2]} 39. Ke4 {[%clk 0:00:16.2]} 39... Rc5 {[%clk 0:00:08.8]}
40. c4 {[%clk 0:00:15.7]} 40... Rf5 {[%clk 0:00:08.9]} 41. Rd3 {[%clk
0:00:13.9]} 41... h6 {[%clk 0:00:07.9]} 42. Rd4 {[%clk 0:00:13.6]} 42... hxg5
{[%clk 0:00:06.1]} 43. hxg5 {[%clk 0:00:14]} 43... Kb6 {[%clk 0:00:06.7]} 44.
Rd7 {[%clk 0:00:12.7]} 44... Ka6 {[%clk 0:00:05.7]} 45. Re7 {[%clk 0:00:09.8]}
45... b6 {[%clk 0:00:06]} 46. Re5 {[%clk 0:00:08.6]} 46... b5 {[%clk 0:00:02.1]}
47. cxb5+ {[%clk 0:00:06.5]} 47... cxb5 {[%clk 0:00:02.1]} 48. Rxf5 {[%clk
0:00:07.1]} 48... gxf5+ {[%clk 0:00:02.5]} 49. Kxf5 {[%clk 0:00:07.8]} 49... b4
{[%clk 0:00:03.1]} 50. Kf6 {[%clk 0:00:08.4]} 50... Kb5 {[%clk 0:00:03.8]} 51.
Kxf7 {[%clk 0:00:08.9]} 51... Kc5 {[%clk 0:00:04.3]} 52. g6 {[%clk 0:00:09.4]}
52... b3 {[%clk 0:00:05.2]} 53. g7 {[%clk 0:00:10.1]} 53... b2 {[%clk
0:00:05.8]} 54. g8=Q {[%clk 0:00:09.7]} 54... b1=Q {[%clk 0:00:06.4]} 55. Qc8+
{[%clk 0:00:09.8]} 55... Kd4 {[%clk 0:00:06.8]} 56. Qd7+ {[%clk 0:00:09.3]}
56... Ke4 {[%clk 0:00:07.1]} 57. f5 {[%clk 0:00:06.6]} 57... Qxc2 {[%clk
0:00:07.6]} 58. Qe6+ {[%clk 0:00:07.1]} 58... Kf4 {[%clk 0:00:08.1]} 59. f6
{[%clk 0:00:06.4]} 59... Qh7+ {[%clk 0:00:08.3]} 60. Ke8 {[%clk 0:00:06.1]}
60... Qg6+ {[%clk 0:00:08.3]} 61. Ke7 {[%clk 0:00:06.1]} 61... Qg5 {[%clk
0:00:08.4]} 62. Qd6+ {[%clk 0:00:04.9]} 62... Ke4 {[%clk 0:00:08.2]} 63. Ke8
{[%clk 0:00:04]} 63... Qg8+ {[%clk 0:00:07.8]} 64. Kd7 {[%clk 0:00:04.3]} 64...
Kf5 {[%clk 0:00:05.4]} 65. Qe7 {[%clk 0:00:02.4]} 65... Qd5+ {[%clk 0:00:05.6]}
66. Ke8 {[%clk 0:00:02.9]} 66... Qg8+ {[%clk 0:00:05.4]} 67. Kd7 {[%clk
0:00:03.4]} 67... Qd5+ {[%clk 0:00:05.8]} 68. Kc7 {[%clk 0:00:03.5]} 68... Qc4+
{[%clk 0:00:05.7]} 69. Kd8 {[%clk 0:00:03.4]} 69... Qg8+ {[%clk 0:00:05.7]} 70.
Kd7 {[%clk 0:00:03.7]} 1/2-1/2